bitfinex/quotes_BTCUSD_20220111
["timestamp","ask_amount","ask_price","bid_price","bid_amount"]
[1641870765476,0.24392903,42136.0,42126.0,0.06662404]
[1641870765675,0.24392903,42136.0,42127.0,0.45457377]
[1641870766317,0.28638604,42135.0,42127.0,0.45457377]
[1641870766717,0.24392903,42136.0,42127.0,0.46057377]
[1641870766918,0.24392903,42136.0,42128.0,0.00052351]
[1641870767519,0.00242353,42137.0,42128.0,0.00052351]
[1641870767721,0.00242353,42137.0,42135.0,0.3293209]
[1641870768521,0.00242353,42137.0,42134.0,0.45275551]
[1641870768722,0.00242353,42137.0,42129.0,0.38218233]
[1641870769123,0.00242353,42137.0,42128.0,0.05986351]
[1641870769323,0.00242353,42137.0,42128.0,0.00052351]
[1641870769769,0.00242353,42137.0,42128.0,0.5948626]
[1641870770775,0.00242353,42137.0,42128.0,0.6028626]
[1641870771873,0.00242353,42137.0,42130.0,0.00026628]
[1641870776234,0.25221349,42135.0,42130.0,0.00026628]
[1641870776734,0.00242353,42137.0,42130.0,0.00426628]
[1641870776934,0.00242353,42137.0,42132.0,0.0002568]
[1641870780769,0.44715688,42136.0,42128.0,0.24732598]
[1641870781025,0.00242353,42137.0,42128.0,0.24732598]
[1641870781921,0.00242353,42137.0,42134.0,0.00052294]
[1641870784328,0.370583,42136.0,42134.0,0.00052294]
[1641870786575,0.05,42135.0,42134.0,0.00052294]
[1641870786876,0.420583,42135.0,42134.0,0.00026588]
[1641870787875,0.370583,42135.0,42134.0,0.00026588]
[1641870788074,0.420583,42135.0,42134.0,0.00026588]
[1641870789921,0.370583,42135.0,42134.0,0.00026588]
[1641870790524,0.420583,42135.0,42134.0,0.00026588]
[1641870790723,0.532583,42135.0,42134.0,0.00026588]
[1641870790925,1.00817629,42135.0,42134.0,0.00026588]
[1641870791125,1.05547629,42135.0,42134.0,0.00026588]
[1641870791325,1.10342867,42135.0,42134.0,0.00026588]
[1641870791528,1.72420545,42135.0,42134.0,0.00026588]
[1641870791926,1.42447724,42135.0,42121.0,0.25374223]
[1641870792125,0.28626764,42125.0,42121.0,0.25374223]
[1641870792369,0.26159204,42129.0,42121.0,0.25374223]
[1641870792568,0.47258848,42131.0,42121.0,0.25374223]
[1641870792569,0.00122084,42131.0,42121.0,0.25374223]
[1641870792768,0.004,42125.0,42121.0,0.25374223]
[1641870792969,0.004,42125.0,42122.0,0.370583]
[1641870793770,0.004,42125.0,42121.0,0.25374223]
[1641870793969,0.28478427,42131.0,42121.0,0.25374223]
[1641870794770,0.27014795,42124.0,42118.0,0.43259821]
[1641870794971,0.27014795,42124.0,42118.0,0.00028116]
[1641870795172,0.43180996,42123.0,42118.0,0.00028116]
[1641870795372,0.00124106,42122.0,42118.0,0.00028116]
[1641870796827,0.02424106,42122.0,42119.0,0.00024452]
[1641870798028,0.00124106,42122.0,42119.0,0.00024452]
[1641870798829,0.02224106,42122.0,42119.0,0.00024452]
[1641870800172,0.00124106,42122.0,42119.0,0.00024452]
[1641870800371,0.27014795,42124.0,42119.0,0.00024452]
[1641870800571,0.36705358,42123.0,42119.0,0.00024452]
[1641870800771,0.018,42122.0,42119.0,0.00024452]
[1641870801974,0.27014795,42124.0,42121.0,0.00025434]
[1641870802773,0.28514795,42124.0,42121.0,0.00025434]
[1641870804122,0.27014795,42124.0,42121.0,0.00025434]
[1641870804720,0.28514795,42124.0,42121.0,0.00025434]
[1641870805921,0.27014795,42124.0,42121.0,0.00025434]
[1641870806121,0.37178638,42123.0,42121.0,0.00025434]
[1641870806521,0.36223768,42123.0,42121.0,0.00025434]
[1641870806722,0.27014795,42124.0,42121.0,0.00025434]
[1641870806923,0.012,42123.0,42122.0,0.00024468]
[1641870808072,0.27014795,42124.0,42122.0,0.00024468]
[1641870808871,0.28514795,42124.0,42122.0,0.00024468]
[1641870810074,0.27014795,42124.0,42122.0,0.00024468]
[1641870810476,0.00122722,42125.0,42122.0,0.00024468]
[1641870810674,0.03104586,42126.0,42122.0,0.00024468]
[1641870810875,0.019,42124.0,42122.0,0.24828037]
[1641870811126,0.019,42124.0,42122.0,0.00024468]
[1641870811925,0.019,42124.0,42118.0,0.00024751]
[1641870812127,0.03104586,42126.0,42120.0,0.30826176]
[1641870812826,0.04604586,42126.0,42120.0,0.30826176]
[1641870814424,0.04604586,42126.0,42118.0,0.00024751]
[1641870814627,0.03104586,42126.0,42118.0,0.00024751]
[1641870814879,0.04604586,42126.0,42118.0,0.00024751]
[1641870815678,0.04604586,42126.0,42119.0,0.28881066]
[1641870816177,0.03104586,42126.0,42119.0,0.28881066]
[1641870816778,0.04604586,42126.0,42119.0,0.28881066]
[1641870816979,0.04604586,42126.0,42121.0,0.00024473]
[1641870817979,0.03104586,42126.0,42121.0,0.00024473]
[1641870818182,0.295,42130.0,42121.0,0.00024473]
[1641870818381,0.59269505,42131.0,42121.0,0.00024473]
[1641870818382,0.59140165,42131.0,42121.0,0.00024473]
[1641870818826,0.004,42130.0,42122.0,0.05935]
[1641870819228,0.23741195,42129.0,42121.0,0.00024473]
[1641870820926,0.24241195,42129.0,42121.0,0.00024473]
[1641870821926,0.24241195,42129.0,42123.0,0.00025414]
[1641870822128,0.23741195,42129.0,42123.0,0.00025414]
[1641870822669,0.72876667,42133.0,42123.0,0.00025414]
[1641870822869,0.026,42129.0,42127.0,0.29035063]
[1641870823170,0.026,42129.0,42123.0,0.00025414]
[1641870823670,0.26633689,42129.0,42123.0,0.00025414]
[1641870824070,0.24033689,42129.0,42123.0,0.00025414]
[1641870824872,0.26633689,42129.0,42123.0,0.00025414]
[1641870825873,0.026,42129.0,42124.0,0.40911357]
[1641870826125,0.026,42129.0,42124.0,0.56845957]
[1641870826324,0.026,42129.0,42125.0,0.0473]
[1641870826525,0.026,42129.0,42128.0,1.370583]
[1641870826724,0.59140165,42135.0,42128.0,1.417883]
[1641870827025,0.00242353,42137.0,42133.0,0.26844409]
[1641870828823,0.05442353,42137.0,42133.0,0.27244409]
[1641870830074,0.00242353,42137.0,42133.0,0.26844409]
[1641870830871,0.05642353,42137.0,42133.0,0.005]
[1641870831874,0.05642353,42137.0,42135.0,0.00025294]
[1641870832073,0.00242353,42137.0,42135.0,0.00025294]
[1641870832877,0.05242353,42137.0,42135.0,0.00425294]
[1641870834123,0.2588163,42137.0,42135.0,0.00025294]
[1641870834523,0.26690252,42136.0,42135.0,0.00025294]
[1641870834924,0.26690252,42136.0,42135.0,0.00325294]
[1641870836824,0.28290252,42136.0,42135.0,0.00625294]
[1641870837024,0.28290252,42136.0,42135.0,0.00325294]
[1641870838076,0.26690252,42136.0,42135.0,0.00025294]
[1641870838875,0.28190252,42136.0,42135.0,0.00325294]
[1641870839276,1.02298281,42136.0,42135.0,0.00325294]
[1641870840076,1.05798281,42136.0,42135.0,0.00025294]
[1641870840876,1.02098281,42136.0,42135.0,0.00025294]
[1641870841925,1.02098281,42136.0,42134.0,0.00049633]
[1641870842124,0.370583,42135.0,42134.0,0.00049633]
[1641870842525,0.26690252,42136.0,42134.0,0.00049633]
[1641870842726,0.370583,42135.0,42134.0,0.00049633]
[1641870842924,0.023,42135.0,42134.0,0.00049633]
[1641870844224,0.26690252,42136.0,42134.0,0.00049633]
[1641870844878,0.018,42136.0,42134.0,0.00049633]
[1641870846080,0.00242353,42137.0,42134.0,0.00049633]
[1641870846778,0.00242353,42137.0,42134.0,0.00025294]
[1641870846979,0.05542353,42137.0,42134.0,0.00025294]
[1641870847779,0.31343683,42136.0,42134.0,0.00025294]
[1641870848179,0.73595829,42135.0,42134.0,0.00025294]
[1641870848627,0.23595829,42135.0,42134.0,0.00025294]
[1641870849027,0.26095829,42135.0,42134.0,0.00025294]
[1641870850225,0.00242353,42137.0,42134.0,0.00025294]
[1641870851024,0.03042353,42137.0,42134.0,0.00025294]
[1641870851926,0.03042353,42137.0,42136.0,0.00024305]
[1641870852272,0.39696471,42137.0,42136.0,0.00024305]
[1641870853072,0.78954771,42137.0,42136.0,0.00024305]
[1641870853272,0.42300653,42137.0,42136.0,0.00024305]
[1641870853473,0.05242353,42137.0,42136.0,0.00024305]
[1641870854273,0.00242353,42137.0,42136.0,0.00024305]
[1641870854976,0.03742353,42137.0,42136.0,0.00024305]
[1641870855176,0.36541916,42137.0,42136.0,0.00024305]
[1641870856225,0.33041916,42137.0,42136.0,0.00024305]
[1641870857025,0.36741916,42137.0,42136.0,0.00025284]
[1641870857227,0.73800216,42137.0,42136.0,0.00025284]
[1641870857429,1.38800216,42137.0,42136.0,0.00025284]
[1641870857828,1.32940381,42137.0,42136.0,0.00025284]
[1641870858226,1.29240381,42137.0,42136.0,0.00025284]
[1641870858426,0.00027708,42135.0,42134.0,0.00024359]
[1641870858628,0.370583,42135.0,42134.0,0.00024359]
[1641870859132,0.385583,42135.0,42134.0,0.00024359]
[1641870859428,0.78203842,42135.0,42134.0,0.00024359]
[1641870860275,0.76703842,42135.0,42134.0,0.00024359]
[1641870860475,0.370583,42135.0,42134.0,0.00024359]
[1641870860876,0.385583,42135.0,42134.0,0.00024359]
[1641870861980,0.38574933,42135.0,42134.0,0.0002694]
[1641870862180,0.37074933,42135.0,42134.0,0.0002694]
[1641870862978,0.38574933,42135.0,42134.0,0.0002694]
[1641870863178,0.74993547,42135.0,42134.0,0.0002694]
[1641870864026,1.34533579,42135.0,42134.0,0.0002694]
[1641870864227,1.33033579,42135.0,42134.0,0.0002694]
[1641870864826,0.73493547,42135.0,42134.0,0.0002694]
[1641870865027,0.74993547,42135.0,42134.0,0.0002694]
[1641870866229,0.73493547,42135.0,42134.0,0.0002694]
[1641870866430,1.33114382,42135.0,42134.0,0.0002694]
[1641870866834,0.73493547,42135.0,42134.0,0.0002694]
[1641870867032,0.30586386,42127.0,42125.0,0.26023235]
[1641870867674,0.30586386,42127.0,42125.0,0.0002694]
[1641870868276,1.36580842,42126.0,42125.0,0.0002694]
[1641870868475,1.46310842,42126.0,42125.0,0.0002694]
[1641870868675,1.56435017,42126.0,42125.0,0.0002694]
[1641870868877,1.90665017,42126.0,42125.0,0.0002694]
[1641870869076,1.91362961,42126.0,42125.0,0.0002694]
[1641870869777,2.92345975,42126.0,42125.0,0.0002694]
[1641870869976,2.92345975,42126.0,42117.0,0.00285238]
[1641870869977,0.95,42125.0,42101.0,0.33167965]
[1641870870178,0.1,42123.0,42117.0,0.00285249]
[1641870870378,0.370583,42119.0,42117.0,0.00285249]
[1641870870578,1.41914254,42118.0,42117.0,0.00285249]
[1641870870778,1.41914254,42118.0,42117.0,5.249e-05]
[1641870870779,1.92241486,42118.0,42117.0,5.249e-05]
[1641870871034,0.41109394,42106.0,42104.0,0.00071334]
[1641870871230,0.41109394,42106.0,42095.0,0.0022]
[1641870871726,0.3682349,42107.0,42095.0,0.0022]
[1641870871932,0.27360221,42108.0,42095.0,0.0022]
[1641870872128,0.27360221,42108.0,42100.0,0.3432064]
[1641870872526,0.00124289,42108.0,42100.0,0.3432064]
[1641870872727,0.36181365,42107.0,42100.0,0.3432064]
[1641870872927,0.36896813,42107.0,42095.0,0.0022]
[1641870873728,0.36896813,42107.0,42100.0,0.00085435]
[1641870873929,0.36896813,42107.0,42101.0,0.2680168]
[1641870874975,0.36896813,42107.0,42102.0,0.00085434]
[1641870874976,0.37896813,42107.0,42102.0,0.00085434]
[1641870875475,0.370583,42106.0,42102.0,0.00085434]
[1641870875675,0.37896813,42107.0,42102.0,0.00085434]
[1641870876276,0.36896813,42107.0,42102.0,0.00085434]
[1641870876876,0.01740437,42107.0,42104.0,0.00027392]
[1641870878279,0.00740437,42107.0,42104.0,0.00027392]
[1641870878923,0.01540437,42107.0,42104.0,0.00027392]
[1641870880325,0.00740437,42107.0,42104.0,0.00027392]
[1641870880525,0.00740437,42107.0,42102.0,0.34180908]
[1641870880923,0.01340437,42107.0,42103.0,0.00069514]
[1641870881925,0.00024915,42106.0,42104.0,0.00025435]
[1641870883076,0.00624915,42106.0,42104.0,0.00025435]
[1641870885085,0.01224915,42106.0,42104.0,0.00025435]
[1641870886226,0.00024915,42106.0,42104.0,0.00025435]
[1641870886827,0.00024915,42106.0,42101.0,0.29251396]
[1641870886828,0.00024915,42106.0,42101.0,0.29357946]
[1641870887029,0.00724915,42106.0,42101.0,0.29276817]
[1641870887227,0.00724915,42106.0,42101.0,0.0010655]
[1641870888029,0.00724915,42106.0,42101.0,0.00187677]
[1641870888228,0.00024915,42106.0,42101.0,0.00106548]
[1641870888427,0.00024915,42106.0,42101.0,0.27393544]
[1641870889027,0.00724915,42106.0,42101.0,0.27393544]
[1641870889228,0.00724915,42106.0,42101.0,0.00106548]
[1641870889429,0.00724915,42106.0,42101.0,0.00093308]
[1641870889630,0.00128839,42103.0,42101.0,0.00093308]
[1641870889878,0.370583,42102.0,42101.0,0.00093308]
[1641870890279,0.74975748,42102.0,42101.0,0.00093308]
[1641870890476,0.74975748,42102.0,42101.0,0.00025421]
[1641870890877,0.370583,42102.0,42101.0,0.00025421]
[1641870891077,0.009,42102.0,42101.0,0.00025421]
[1641870891977,0.009,42102.0,42100.0,0.24740571]
[1641870892177,0.009,42102.0,42099.0,0.00093366]
[1641870892378,0.00024973,42103.0,42099.0,0.00093366]
[1641870892979,0.00824973,42103.0,42099.0,0.00025478]
[1641870893627,0.33247645,42101.0,42099.0,0.00025478]
[1641870894131,0.33247645,42101.0,42099.0,0.00097112]
[1641870895126,0.33947645,42101.0,42099.0,0.00097112]
[1641870895330,0.620583,42100.0,42099.0,0.00025478]
[1641870895527,0.7385944,42100.0,42099.0,0.00025478]
[1641870895728,0.370583,42100.0,42099.0,0.00025478]
[1641870896329,0.33247645,42101.0,42099.0,0.00025478]
[1641870896931,0.34047645,42101.0,42097.0,0.00096149]
[1641870897776,0.34047645,42101.0,42097.0,0.0009615]
[1641870897978,0.34047645,42101.0,42094.0,0.0014615]
[1641870898375,0.33247645,42101.0,42094.0,0.0014615]
[1641870898976,0.33847645,42101.0,42094.0,0.0014615]
[1641870900280,0.33247645,42101.0,42095.0,0.00071075]
[1641870901129,0.33847645,42101.0,42095.0,0.00071075]
[1641870901331,0.33847645,42101.0,42095.0,0.00071076]
[1641870901930,0.33847645,42101.0,42097.0,0.00023713]
[1641870902328,0.33247645,42101.0,42097.0,0.00023713]
[1641870903136,0.370583,42100.0,42097.0,0.00023713]
[1641870903332,0.00122379,42098.0,42097.0,0.00023713]
[1641870903538,0.00122379,42098.0,42092.0,0.0011]
[1641870903539,0.10512079,42096.0,42092.0,0.0011]
[1641870903732,0.370583,42095.0,42089.0,0.0022]
[1641870903932,0.41184044,42090.0,42089.0,0.0022]
[1641870904132,0.41913868,42090.0,42089.0,0.0022]
[1641870904983,0.0573,42090.0,42089.0,0.0022]
[1641870905179,0.0573,42090.0,42086.0,0.0027]
[1641870905581,0.0573,42090.0,42089.0,1.368293]
[1641870905782,0.01,42090.0,42089.0,1.368293]
[1641870906479,0.56874399,42100.0,42089.0,1.368293]
[1641870906680,0.56874399,42100.0,42089.0,1.2]
[1641870906681,0.28034399,42100.0,42089.0,1.2]
[1641870906979,0.28034399,42100.0,42089.0,1.25122133]
[1641870907180,0.28334399,42100.0,42089.0,1.25122133]
[1641870907381,0.3722243,42099.0,42092.0,0.00085513]
[1641870907582,0.00201167,42099.0,42092.0,0.00085513]
[1641870908631,0.0020117,42099.0,42093.0,0.32609992]
[1641870909033,0.0040117,42099.0,42093.0,0.32609992]
[1641870909432,0.0258632,42096.0,42093.0,0.32609992]
[1641870909833,0.0258632,42096.0,42093.0,0.32609993]
[1641870910233,0.0258632,42096.0,42094.0,0.370583]
[1641870910938,0.0258632,42096.0,42093.0,0.32609992]
[1641870911135,0.0258632,42096.0,42094.0,0.019]
[1641870911935,0.0258632,42096.0,42095.0,0.35020405]
[1641870912582,0.0258632,42096.0,42093.0,0.32592172]
[1641870913183,0.0258632,42096.0,42093.0,0.37392172]
[1641870913383,0.0258632,42096.0,42093.0,0.37324479]
[1641870914084,0.0258632,42096.0,42094.0,0.370583]
[1641870914283,0.0258632,42096.0,42093.0,0.37324479]
[1641870914484,0.00058431,42099.0,42093.0,0.37324479]
[1641870914687,0.0129316,42094.0,42093.0,0.37324479]
[1641870914986,0.0129316,42094.0,42093.0,0.99582779]
[1641870915190,0.0129316,42094.0,42093.0,1.04182779]
[1641870916033,0.0129316,42094.0,42093.0,1.15121679]
[1641870916231,0.0129316,42096.0,42094.0,1.445]
[1641870916428,0.0129316,42096.0,42095.0,1.536959]
[1641870916629,0.0129316,42096.0,42095.0,1.686959]
[1641870916829,0.0129316,42096.0,42095.0,1.736959]
[1641870917030,0.00061503,42099.0,42096.0,1.45]
[1641870917231,0.00061503,42099.0,42098.0,1.120536]
[1641870917429,0.00061503,42099.0,42098.0,0.370536]
[1641870917630,0.00061503,42099.0,42098.0,0.420536]
[1641870917831,0.00061503,42099.0,42098.0,1.129911]
[1641870918129,0.00061509,42101.0,42098.0,1.129911]
[1641870918329,0.00061509,42101.0,42100.0,0.918184]
[1641870918732,0.00061509,42101.0,42100.0,0.968184]
[1641870919130,0.00061509,42101.0,42100.0,1.25260529]
[1641870919331,0.00715448,42107.0,42100.0,1.25260529]
[1641870919332,0.00060891,42103.0,42100.0,1.25260529]
[1641870919533,0.00060891,42103.0,42102.0,1.820498]
[1641870919779,0.00060891,42103.0,42102.0,2.127161]
[1641870919979,0.00715448,42107.0,42103.0,1.45]
[1641870920181,0.00715448,42107.0,42106.0,1.318156]
[1641870920380,0.00715448,42107.0,42106.0,2.720456]
[1641870920582,0.00715448,42107.0,42106.0,2.820456]
[1641870920782,0.03629097,42120.0,42108.0,1.82044]
[1641870920982,0.59349113,42122.0,42112.0,0.16938744]
[1641870921182,0.60301313,42124.0,42113.0,0.42556792]
[1641870921389,0.60301313,42124.0,42114.0,1.3143511]
[1641870921582,0.60301313,42124.0,42120.0,0.29295363]
[1641870921782,0.60301313,42124.0,42120.0,0.34025363]
[1641870921983,0.009522,42124.0,42120.0,0.0473]
[1641870922983,0.01025185,42124.0,42120.0,0.0473]
[1641870923183,0.01025185,42124.0,42120.0,0.0703]
[1641870924530,0.01025185,42124.0,42120.0,0.0473]
[1641870924730,0.01025185,42124.0,42122.0,0.2539133]
[1641870925032,0.01025185,42124.0,42122.0,0.3039133]
[1641870925232,0.01025185,42124.0,42123.0,1.51956329]
[1641870925431,0.009522,42124.0,42123.0,1.51956329]
[1641870925630,0.009522,42124.0,42123.0,1.56434386]
[1641870925830,0.009522,42124.0,42123.0,1.217883]
[1641870926133,0.009522,42124.0,42123.0,1.267883]
[1641870927030,0.009522,42124.0,42123.0,1.29107815]
[1641870927279,0.009522,42124.0,42123.0,0.49107815]
[1641870927979,0.009522,42124.0,42123.0,0.86874582]
[1641870928378,0.009522,42124.0,42123.0,0.81874582]
[1641870928779,0.009522,42124.0,42123.0,0.79574582]
[1641870929183,0.009522,42124.0,42123.0,0.82274582]
[1641870929781,0.009522,42124.0,42123.0,0.80360345]
[1641870930482,0.009522,42124.0,42123.0,0.77660345]
[1641870931228,0.009522,42124.0,42123.0,0.80660345]
[1641870932429,0.009522,42124.0,42123.0,0.77660345]
[1641870933228,0.009522,42124.0,42123.0,0.81160345]
[1641870933530,0.009522,42124.0,42123.0,0.45307815]
[1641870933731,0.009522,42124.0,42123.0,0.80203839]
[1641870934332,0.009522,42124.0,42123.0,0.76703839]
[1641870935180,0.009522,42124.0,42123.0,0.79003839]
[1641870936385,0.009522,42124.0,42123.0,0.76703839]
[1641870937183,0.009522,42124.0,42123.0,0.79103839]
[1641870938387,0.009522,42124.0,42123.0,0.76703839]
[1641870939228,0.009522,42124.0,42123.0,0.80003839]
[1641870939429,0.009522,42124.0,42123.0,0.45107815]
[1641870940529,0.009522,42124.0,42123.0,0.41807815]
[1641870941131,0.009522,42124.0,42123.0,0.45207815]
[1641870941530,0.009522,42124.0,42123.0,0.79655257]
[1641870942388,0.0006057,42126.0,42123.0,0.76255257]
[1641870942786,0.0006057,42126.0,42125.0,1.167777]
[1641870942985,0.0006057,42126.0,42125.0,1.167776]
[1641870943385,0.00060571,42128.0,42125.0,1.167776]
[1641870943586,0.00060571,42128.0,42126.0,0.370554]
[1641870944487,0.00060571,42128.0,42127.0,1.117766]
[1641870944686,0.00060572,42129.0,42127.0,1.117766]
[1641870945088,0.00060572,42129.0,42127.0,1.133766]
[1641870945888,0.00060577,42130.0,42129.0,0.75802093]
[1641870946330,0.00060577,42130.0,42129.0,0.35802093]
[1641870947229,0.00060578,42132.0,42129.0,0.37002093]
[1641870948233,0.00060578,42133.0,42129.0,0.37002093]
[1641870948432,0.00060578,42133.0,42129.0,0.35802093]
[1641870949032,0.00060578,42133.0,42128.0,0.00019444]
[1641870949233,0.00060578,42133.0,42129.0,0.009]
[1641870949432,0.00060576,42133.0,42129.0,0.009]
[1641870950479,0.00060576,42133.0,42128.0,0.00019444]
[1641870951179,0.00060576,42133.0,42128.0,0.01119444]
[1641870951381,0.00060576,42133.0,42126.0,0.06783644]
[1641870951880,0.00060576,42133.0,42130.0,0.00019416]
[1641870952982,0.00775987,42134.0,42130.0,0.00019416]
[1641870953182,0.015,42133.0,42130.0,0.00319416]
[1641870954439,0.00775987,42134.0,42130.0,0.00019416]
[1641870955337,0.06036564,42134.0,42130.0,0.00019416]
[1641870955533,0.05975988,42134.0,42130.0,0.00019416]
[1641870956535,0.06036564,42134.0,42130.0,0.00019416]
[1641870956736,0.05975987,42134.0,42130.0,0.00019416]
[1641870957035,0.00775987,42134.0,42124.0,0.47758822]
[1641870957281,0.05275987,42134.0,42130.0,0.001]
[1641870957885,0.00060574,42131.0,42130.0,0.001]
[1641870958485,0.00060574,42131.0,42128.0,0.34950805]
[1641870959086,0.00060575,42133.0,42129.0,0.41381533]
[1641870959286,0.00060575,42133.0,42132.0,1.017675]
[1641870959485,0.00060575,42133.0,42132.0,1.067675]
[1641870959685,0.00060575,42133.0,42132.0,1.49021172]
[1641870959885,0.00060575,42133.0,42132.0,1.264975]
[1641870960088,0.00060575,42133.0,42132.0,1.59571141]
[1641870960287,0.00715411,42134.0,42132.0,1.65503641]
[1641870960491,0.00715411,42134.0,42133.0,1.72177905]
[1641870960687,0.00715411,42134.0,42133.0,1.86907905]
[1641870961135,0.00715411,42134.0,42133.0,1.88207905]
[1641870961936,0.00715411,42134.0,42133.0,1.88233083]
[1641870962337,0.00715411,42134.0,42133.0,0.43233083]
[1641870962538,0.00715411,42134.0,42133.0,0.80380911]
[1641870962736,0.00715411,42134.0,42133.0,0.79080911]
[1641870963140,0.00715411,42134.0,42133.0,0.60360238]
[1641870963335,0.00715411,42134.0,42133.0,1.31660238]
[1641870963935,0.00715411,42134.0,42133.0,1.36660238]
[1641870964136,0.00715411,42134.0,42133.0,1.51660238]
[1641870964338,0.00715411,42134.0,42133.0,1.81660238]
[1641870964537,0.00715411,42134.0,42133.0,1.80360238]
[1641870964783,0.00715411,42134.0,42133.0,1.61810778]
[1641870965183,0.00715411,42134.0,42133.0,1.63110778]
[1641870966185,0.00715411,42134.0,42133.0,2.8873914]
[1641870966390,0.00060576,42136.0,42133.0,2.8873914]
[1641870966586,0.00060576,42136.0,42135.0,1.61766]
[1641870966788,0.00060576,42136.0,42135.0,1.76496]
[1641870966990,0.00060576,42136.0,42135.0,1.86496]
[1641870967188,0.00060576,42136.0,42135.0,2.55097884]
[1641870967391,0.00060578,42138.0,42135.0,3.80597884]
[1641870967689,0.00060578,42138.0,42137.0,2.884834]
[1641870967889,0.00060578,42138.0,42137.0,2.982134]
[1641870968089,0.00060578,42138.0,42137.0,3.082134]
[1641870968293,0.00242277,42144.0,42138.0,1.45]
[1641870968542,0.00242277,42144.0,42142.0,0.217629]
[1641870968737,0.00242283,42146.0,42144.0,0.4200042]
[1641870968936,0.00242283,42146.0,42145.0,1.064914]
[1641870969137,0.00242283,42146.0,42145.0,1.214914]
[1641870969340,0.00242283,42146.0,42145.0,0.364914]
[1641870969638,0.00242283,42146.0,42145.0,0.414914]
[1641870969842,0.37523672,42152.0,42145.0,0.414914]
[1641870970039,0.37523672,42152.0,42147.0,0.059309]
[1641870970240,0.5519,42155.0,42145.0,0.2473]
[1641870970443,0.5519,42155.0,42146.0,0.370583]
[1641870970641,0.24869417,42153.0,42146.0,0.370583]
[1641870970844,1.5151,42156.0,42146.0,0.370583]
[1641870971040,0.00860455,42149.0,42146.0,0.71739969]
[1641870971240,0.00860455,42149.0,42146.0,0.72339969]
[1641870971639,0.00860455,42149.0,42146.0,0.82339969]
[1641870971839,0.00860455,42149.0,42148.0,0.0002488]
[1641870972294,0.008,42149.0,42148.0,0.0002488]
[1641870973189,0.008,42149.0,42148.0,0.0052488]
[1641870973394,0.003,42149.0,42148.0,0.0052488]
[1641870974191,0.003,42149.0,42148.0,0.32378187]
[1641870974390,0.003,42149.0,42148.0,0.69436487]
[1641870974592,0.003,42149.0,42148.0,0.68936487]
[1641870975191,0.003,42149.0,42148.0,0.69436487]
[1641870975593,0.003,42149.0,42148.0,0.74436487]
[1641870976435,0.003,42149.0,42148.0,0.68936487]
[1641870976636,0.003,42149.0,42148.0,0.3708318]
[1641870977336,0.003,42149.0,42148.0,0.3758318]
[1641870978038,0.003,42149.0,42148.0,0.64403919]
[1641870978438,0.003,42149.0,42148.0,0.63903919]
[1641870978642,0.003,42149.0,42148.0,0.73903919]
[1641870979339,0.003,42149.0,42148.0,0.74403919]
[1641870979538,0.003,42149.0,42148.0,1.08732517]
[1641870979986,0.003,42149.0,42148.0,1.14662817]
[1641870980584,0.003,42149.0,42148.0,1.14162817]
[1641870981385,0.003,42149.0,42148.0,1.14862817]
[1641870981786,0.003,42149.0,42148.0,1.09862817]
[1641870982487,0.003,42149.0,42148.0,1.09162817]
[1641870983086,0.003,42149.0,42148.0,1.13892817]
[1641870983286,0.003,42149.0,42148.0,1.14592817]
[1641870983736,0.003,42149.0,42148.0,0.5344348]
[1641870983934,0.003,42149.0,42148.0,0.4751318]
[1641870984134,0.003,42149.0,42148.0,0.4251318]
[1641870984534,0.003,42149.0,42148.0,0.4681318]
[1641870984934,0.003,42149.0,42148.0,0.75183573]
[1641870985334,0.003,42149.0,42148.0,0.75683573]
[1641870985533,0.003,42149.0,42148.0,0.4681318]
[1641870986435,0.003,42149.0,42148.0,0.7638974]
[1641870987034,0.003,42149.0,42148.0,0.7588974]
[1641870987282,0.003,42149.0,42148.0,0.7638974]
[1641870987982,0.003,42149.0,42148.0,1.0638974]
[1641870988183,0.003,42149.0,42148.0,3.85710706]
[1641870988585,0.003,42149.0,42148.0,3.85210706]
[1641870988784,0.003,42149.0,42148.0,1.0588974]
[1641870988986,0.003,42149.0,42148.0,1.41070381]
[1641870989384,0.003,42149.0,42148.0,1.0648974]
[1641870989583,0.003,42149.0,42148.0,1.40715278]
[1641870989983,0.003,42149.0,42148.0,0.7648974]
[1641870990583,0.003,42149.0,42148.0,0.7588974]
[1641870991242,0.003,42149.0,42148.0,0.7638974]
[1641870992544,0.003,42149.0,42148.0,0.7588974]
[1641870992944,0.003,42149.0,42148.0,1.0088974]
[1641870993344,0.003,42149.0,42148.0,1.0742044]
[1641870993545,0.003,42149.0,42148.0,0.8242044]
[1641870994045,0.003,42149.0,42148.0,0.8742044]
[1641870994645,0.003,42149.0,42148.0,0.8682044]
[1641870995292,0.003,42149.0,42148.0,0.8742044]
[1641870996494,0.003,42149.0,42148.0,0.8682044]
[1641870996693,0.003,42149.0,42148.0,0.4181318]
[1641870996899,0.003,42149.0,42148.0,0.3708318]
[1641870997093,0.003,42149.0,42148.0,0.0002488]
[1641870997294,0.003,42149.0,42148.0,0.0012488]
[1641870997895,0.003,42149.0,42148.0,0.3718318]
[1641870998640,0.003,42149.0,42148.0,0.3708318]
[1641870999541,0.003,42149.0,42148.0,0.3718318]
[1641871000539,0.003,42149.0,42148.0,0.3708318]
[1641871001341,0.003,42149.0,42148.0,0.3718318]
[1641871002599,0.003,42149.0,42148.0,0.3708318]
[1641871003297,0.003,42149.0,42148.0,0.3718318]
[1641871004600,0.003,42149.0,42148.0,0.3708318]
[1641871005399,0.003,42149.0,42148.0,0.3718318]
[1641871006642,0.003,42149.0,42148.0,0.3708318]
[1641871007243,0.003,42149.0,42148.0,0.3718318]
[1641871008645,0.003,42149.0,42148.0,0.0002488]
[1641871008944,0.003,42149.0,42148.0,0.3502488]
[1641871009144,0.003,42149.0,42148.0,0.0502488]
[1641871009344,0.003,42149.0,42148.0,0.0022488]
[1641871010494,0.003,42149.0,42148.0,0.0002488]
[1641871011298,0.003,42149.0,42148.0,0.0022488]
[1641871011699,0.003,42149.0,42148.0,0.3022488]
[1641871012601,0.003,42149.0,42148.0,0.3002488]
[1641871013001,0.03583011,42154.0,42148.0,0.0002488]
[1641871013201,0.0006016,42151.0,42148.0,0.0002488]
[1641871013402,0.0006016,42151.0,42148.0,0.0022488]
[1641871014257,0.03583011,42154.0,42148.0,0.0022488]
[1641871014657,0.03583011,42154.0,42148.0,0.0002488]
[1641871015359,0.40873899,42153.0,42148.0,0.0022488]
[1641871015559,0.00122261,42151.0,42148.0,0.0022488]
[1641871015761,0.4720785,42150.0,42148.0,0.0022488]
[1641871015957,1.01447745,42149.0,42148.0,0.0022488]